bitfinex/quotes_BTCUSD_20251226
["timestamp","ask_amount","ask_price","bid_price","bid_amount"]
[1766765864231,0.01156,87172.0,87150.0,1.22076]
[1766765864232,0.0107406,87169.0,87150.0,1.22076]
[1766765864406,0.0107406,87168.0,87150.0,1.22076]
[1766765864616,0.0107406,87167.0,87150.0,1.22076]
[1766765864935,0.01074079,87166.0,87150.0,1.22076]
[1766765865097,0.01156,87172.0,87150.0,1.23223446]
[1766765865440,0.01074168,87171.0,87151.0,1.24811433]
[1766765865673,0.01074168,87170.0,87151.0,1.23664]
[1766765865822,0.01074168,87169.0,87151.0,1.23664]
[1766765866025,0.01156,87172.0,87151.0,1.23664]
[1766765866026,0.01074168,87168.0,87151.0,1.23664]
[1766765866342,0.01074168,87167.0,87151.0,1.24811433]
[1766765866544,0.01156,87172.0,87153.0,0.01147407]
[1766765866715,0.01074245,87171.0,87155.0,0.01147381]
[1766765866911,0.05910879,87170.0,87152.0,0.0114742]
[1766765867105,0.01156,87172.0,87152.0,0.0114742]
[1766765867106,0.01074245,87169.0,87153.0,0.01147407]
[1766765867350,0.01074245,87168.0,87153.0,0.01147407]
[1766765867549,0.01074245,87167.0,87154.0,0.01147394]
[1766765867788,1.26736,87172.0,87151.0,1.23664]
[1766765867912,1.2558,87170.0,87152.0,0.0114742]
[1766765868112,0.01074352,87169.0,87153.0,0.01147407]
[1766765868484,0.01074352,87168.0,87153.0,0.01147407]
[1766765868691,0.01074352,87167.0,87153.0,0.01147407]
[1766765868985,1.2558,87170.0,87153.0,0.01147407]
[1766765869137,0.01074532,87169.0,87153.0,0.01147407]
[1766765869334,0.0028332,87168.0,87161.0,0.01147302]
[1766765869554,0.01156,87186.0,87168.0,0.00055]
[1766765869770,1.2558,87184.0,87167.0,0.01156]
[1766765870015,1.25590744,87184.0,87166.0,0.02303236]
[1766765870594,1.25590744,87184.0,87166.0,0.01156]
[1766765871620,1.25590744,87184.0,87166.0,0.02303236]
[1766765871844,1.25590744,87184.0,87166.0,0.01156]
[1766765872445,1.25590744,87184.0,87167.0,0.01147223]
[1766765872609,1.25590744,87184.0,87166.0,0.02303236]
[1766765872807,1.25590744,87184.0,87166.0,0.24100462]
[1766765872989,0.11459808,87223.0,87183.0,1.23664]
[1766765872990,0.04116129,87203.0,87183.0,1.23664]
[1766765873195,0.0002835,87210.0,87183.0,1.23664]
[1766765873196,1.2558,87204.0,87184.0,0.01156]
[1766765873401,1.2558,87204.0,87184.0,0.02302999]
[1766765873600,1.2558,87204.0,87184.0,0.01156]
[1766765874222,1.2558,87204.0,87179.0,0.01147065]
[1766765874427,1.2558,87204.0,87180.0,0.02303052]
[1766765874839,1.2558,87204.0,87181.0,0.01147038]
[1766765875022,1.2558,87204.0,87182.0,0.01147025]
[1766765875532,1.2558,87204.0,87183.0,0.05736536]
[1766765875738,1.2558,87204.0,87184.0,0.01146999]
[1766765876359,1.2558,87204.0,87183.0,0.01147012]
[1766765876566,1.2558,87204.0,87185.0,0.01146986]
[1766765876766,1.2558,87204.0,87184.0,0.01146999]
[1766765876967,1.2558,87204.0,87185.0,0.01146986]
[1766765877169,1.2558,87204.0,87184.0,0.01146999]
[1766765877375,0.0002835,87210.0,87182.0,0.01147025]
[1766765877376,1.2558,87202.0,87182.0,0.01147025]
[1766765877575,1.2558,87202.0,87183.0,0.01156]
[1766765877756,1.2558,87202.0,87183.0,0.01166744]
[1766765878162,1.2558,87202.0,87183.0,0.02313756]
[1766765878369,1.26736,87211.0,87191.0,0.01146907]
[1766765878570,1.26736,87211.0,87193.0,0.01146881]
[1766765878771,0.0004,87226.0,87203.0,0.01146749]
[1766765878772,1.2558,87220.0,87203.0,0.01146749]
[1766765878994,3.5e-06,87210.0,87206.0,0.0114671]
[1766765879191,3.5e-06,87210.0,87207.0,0.01146696]
[1766765879534,3.5e-06,87210.0,87207.0,0.06880132]
[1766765879705,3.5e-06,87210.0,87208.0,1.27793193]
[1766765880240,3.5e-06,87210.0,87204.0,0.02302736]
[1766765880241,3.5e-06,87210.0,87204.0,0.01156]
[1766765880370,3.5e-06,87210.0,87194.0,0.01146867]
[1766765880371,0.00055,87204.0,87194.0,0.01146867]
[1766765880574,3.5e-06,87210.0,87201.0,0.01146775]
[1766765880753,3.5e-06,87210.0,87191.0,0.01146907]
[1766765880967,3.5e-06,87210.0,87194.0,0.01146867]
[1766765881171,3.5e-06,87210.0,87193.0,0.01146881]
[1766765881371,3.5e-06,87210.0,87188.0,1.23664]
[1766765881372,1.2558035,87210.0,87188.0,1.23664]
[1766765881629,1.37004524,87209.0,87186.0,0.01146973]
[1766765881833,1.37004524,87209.0,87190.0,0.0114692]
[1766765882039,1.37004524,87209.0,87188.0,0.01146946]
[1766765882040,1.37004524,87209.0,87189.0,0.01146933]
[1766765882257,1.37004524,87209.0,87187.0,0.02298959]
[1766765882448,1.37004524,87209.0,87189.0,0.01146933]
[1766765882653,0.0114671,87206.0,87176.0,0.01147104]
[1766765882881,3.5e-06,87210.0,87184.0,0.01152]
[1766765882882,0.000549,87189.0,87184.0,0.01152]
[1766765883355,1.2558,87205.0,87184.0,0.01152]
[1766765883801,1.2558,87205.0,87184.0,0.02298999]
[1766765883989,1.2558,87205.0,87184.0,0.01152]
[1766765884314,1.2558,87205.0,87183.0,0.00010744]
[1766765884315,1.2558,87203.0,87185.0,0.01152]
[1766765886704,0.000549,87185.0,87183.0,0.00010744]
[1766765886906,1.2558,87195.0,87184.0,0.01152]
[1766765887130,3.5e-06,87210.0,87189.0,0.01146933]
[1766765887249,3.5e-06,87210.0,87189.0,1.23664]
[1766765887453,1.08206533,87214.0,87189.0,1.24810933]
[1766765887871,1.08206533,87214.0,87189.0,1.23664]
[1766765888295,1.08206533,87214.0,87183.0,0.05745776]
[1766765888296,0.05733594,87206.0,87183.0,0.00010744]
[1766765888494,0.01146657,87210.0,87184.0,0.01152]
[1766765888495,1.2558,87196.0,87184.0,0.01152]
[1766765888671,1.2558,87205.0,87185.0,0.01146986]
[1766765888871,1.2558,87205.0,87188.0,0.01146946]
[1766765889190,1.2558,87205.0,87184.0,1.24816]
[1766765889592,1.2558,87205.0,87186.0,0.01146973]
[1766765889890,1.2558,87205.0,87185.0,0.01146986]
[1766765890078,1.2558,87205.0,87184.0,1.24816]
[1766765891146,1.2558,87205.0,87185.0,0.02298986]
[1766765891355,1.2558,87205.0,87186.0,0.02298973]
[1766765891513,1.2558,87216.0,87191.0,1.30545387]
[1766765891708,0.01152,87215.0,87193.0,0.01146881]
[1766765891912,0.01152,87215.0,87194.0,0.01152]
[1766765892123,0.01152,87215.0,87194.0,0.02298867]
[1766765892418,0.01152,87215.0,87194.0,0.01152]
[1766765892691,1.2558,87216.0,87195.0,0.01146854]
[1766765892864,1.2558,87216.0,87196.0,0.01146841]
[1766765893023,1.2558,87216.0,87194.0,0.01152]
[1766765893024,1.32687044,87216.0,87194.0,0.01152]
[1766765893558,1.32687044,87216.0,87194.0,0.02298867]
[1766765893904,1.32687044,87216.0,87195.0,0.01146854]
[1766765894462,1.32687044,87216.0,87196.0,0.01146841]
[1766765894659,1.32687044,87216.0,87195.0,0.01146854]
[1766765894892,1.16576,87214.0,87195.0,0.01146854]
[1766765895287,1.16576,87214.0,87196.0,0.01146841]
[1766765895591,0.01152,87223.0,87200.0,0.01146788]
[1766765895732,1.377053,87221.0,87201.0,0.01152]
[1766765895939,0.01152,87223.0,87201.0,0.01152]
[1766765895940,1.26724,87220.0,87201.0,0.01152]
[1766765896145,0.01152,87223.0,87201.0,0.01152]
[1766765896146,1.16576,87219.0,87201.0,0.01152]
[1766765897922,1.16576,87219.0,87202.0,0.01146762]
[1766765898047,1.16576,87219.0,87201.0,0.01152]
[1766765898447,1.16576,87219.0,87201.0,0.02298775]
[1766765898744,0.01152,87222.0,87203.0,0.01146749]
[1766765898953,0.01152,87222.0,87202.0,1.2075]
[1766765899107,1.17728,87222.0,87202.0,1.2075]
[1766765900163,0.01146526,87220.0,87202.0,1.2075]
[1766765900344,1.16576,87219.0,87201.0,0.01152]
[1766765900494,1.23473986,87219.0,87202.0,1e-08]
[1766765901378,0.01073273,87218.0,87196.0,1.2075]
[1766765901580,1.23473986,87219.0,87197.0,1.27636096]
[1766765901779,1.23473986,87219.0,87198.0,1.2075]
[1766765901979,0.01073235,87218.0,87198.0,1.2075]
[1766765902187,0.11424524,87218.0,87198.0,1.21896815]
[1766765902393,0.0107363,87217.0,87198.0,1.2075]
[1766765902549,0.11424524,87218.0,87198.0,1.21896815]
[1766765902750,0.0107363,87217.0,87199.0,1.2075]
[1766765902959,0.01152,87222.0,87204.0,1.2075]
[1766765903184,0.01073605,87221.0,87206.0,1.08117056]
[1766765903334,0.01073605,87220.0,87206.0,0.96636112]
[1766765903543,0.01073605,87219.0,87205.0,0.01152]
[1766765903780,0.01073742,87218.0,87205.0,0.01152]
[1766765903997,0.01152,87223.0,87205.0,0.01152]
[1766765904301,0.000549,87205.0,87198.0,1.2075]
[1766765904441,1.16576,87219.0,87204.0,0.01152]
[1766765904643,0.01073801,87218.0,87204.0,1e-08]
[1766765904852,1.17728,87223.0,87204.0,1e-08]
[1766765905054,0.0107376,87222.0,87204.0,1e-08]
[1766765905305,0.0222576,87221.0,87205.0,1.2075]
[1766765905481,0.0107376,87220.0,87205.0,1.2075]
[1766765906397,0.0107376,87220.0,87205.0,1.21896723]
[1766765906620,0.0107376,87220.0,87205.0,1.2075]
[1766765908306,0.0002,87228.0,87211.0,0.01146644]
[1766765908505,0.0002,87228.0,87220.0,0.000549]
[1766765908893,0.0002,87228.0,87212.0,1.21902]
[1766765909445,0.00055846,87228.0,87212.0,1.21902]
[1766765910421,0.00055846,87228.0,87212.0,1.23048631]
[1766765910618,0.00055846,87228.0,87212.0,1.28781737]
[1766765911027,0.00055846,87228.0,87213.0,1.21896618]
[1766765911239,0.00055846,87228.0,87215.0,1.2075]
[1766765913928,0.0002516,87218.0,87215.0,1.2075]
[1766765914238,0.00055,87215.0,87212.0,0.01152]
[1766765914549,0.0002516,87218.0,87212.0,0.01152]
[1766765914752,0.0002516,87218.0,87207.0,1.2075]
[1766765914952,0.0002516,87218.0,87211.0,0.01152]
[1766765915261,0.0002516,87218.0,87208.0,0.01152]
[1766765915396,0.0002516,87218.0,87209.0,0.01152]
[1766765916725,0.0002516,87218.0,87207.0,1.2075]
[1766765917038,1.1660116,87218.0,87208.0,0.01152]
[1766765917238,0.97869164,87227.0,87208.0,1.2075]
[1766765917399,1.04747786,87227.0,87208.0,1.2075]
[1766765917608,0.01202266,87228.0,87207.0,0.01152]
[1766765917609,0.00055,87208.0,87207.0,0.01152]
[1766765917994,0.00055,87208.0,87200.0,1.2075]
[1766765918196,1.16576,87222.0,87201.0,0.01152]
[1766765918434,1.16576,87220.0,87201.0,1.21902]
[1766765919233,1.17722526,87220.0,87201.0,1.21902]
[1766765919398,1.16576,87220.0,87201.0,1.21902]
[1766765919598,1.16576,87220.0,87202.0,0.01152]
[1766765919797,0.00055,87202.0,87189.0,0.01146933]
[1766765920090,0.00055,87202.0,87190.0,1.2304892]
[1766765920233,1.16576,87217.0,87190.0,1.34473444]
[1766765920450,0.01146631,87212.0,87191.0,1.2075]
[1766765920795,0.01152,87211.0,87193.0,1.2075]
[1766765920937,1.17728,87211.0,87193.0,1.2075]
[1766765921135,1.17650381,87210.0,87193.0,1.20726938]
[1766765921353,0.01074623,87209.0,87193.0,1.20726938]
[1766765921557,1.16576,87210.0,87193.0,1.20726938]
[1766765921721,0.01074629,87209.0,87193.0,1.20726938]
[1766765922086,0.00055,87193.0,87187.0,0.01152]
[1766765922280,0.00055,87193.0,87180.0,1.2075]
[1766765922480,1.16576,87197.0,87180.0,1.21902]
[1766765922780,0.01152,87202.0,87166.0,0.03086026]
[1766765922781,1.17722973,87186.0,87166.0,0.03086026]
[1766765922926,1.16576,87184.0,87167.0,0.01152]
[1766765923338,1.16576,87184.0,87167.0,0.01162744]
[1766765923784,1.24072052,87180.0,87167.0,0.00010744]
[1766765923976,1.24072052,87180.0,87144.0,0.22950347]
[1766765923977,0.01147183,87170.0,87153.0,1.30633026]
[1766765924154,1.22594,87169.0,87151.0,0.04238026]
[1766765924354,1.22604746,87169.0,87151.0,0.01152]
[1766765924988,1.22604746,87169.0,87151.0,0.02299433]
[1766765925348,1.22604746,87169.0,87151.0,0.01152]
[1766765925798,1.25971832,87169.0,87151.0,0.01152]
[1766765926796,1.22604746,87169.0,87151.0,0.01152]
[1766765927395,1.23751942,87169.0,87151.0,0.01152]
[1766765927594,1.21442,87168.0,87151.0,0.01152]
[1766765927792,1.21442,87168.0,87145.0,1.23757]
[1766765928021,1.21442,87167.0,87150.0,0.01152]
[1766765928223,1.21442,87165.0,87150.0,0.01152]
[1766765928418,1.21442,87165.0,87146.0,0.01152]
[1766765928622,1.22589249,87165.0,87146.0,0.01152]
[1766765928853,1.21442,87165.0,87146.0,0.01152]
[1766765929922,1.22589249,87165.0,87146.0,0.01152]
[1766765930143,1.34013786,87164.0,87146.0,0.01152]
[1766765930522,1.32866524,87164.0,87146.0,0.01152]
[1766765930728,1.21442,87164.0,87146.0,0.01152]
[1766765931051,0.00010746,87169.0,87147.0,1.23757]
[1766765931194,0.01152,87167.0,87164.0,0.000106]
[1766765931414,0.00018653,87167.0,87164.0,0.000106]
[1766765931599,0.00018653,87167.0,87146.0,0.02299499]
[1766765931600,0.01152,87172.0,87157.0,0.05736716]
[1766765931838,1.21442,87181.0,87162.0,1.19698148]
[1766765932042,1.21442,87181.0,87158.0,0.00918349]
[1766765932043,1.21442,87181.0,87163.0,0.01152]
[1766765934044,1.04603188,87181.0,87163.0,0.01152]
[1766765934245,1.04603188,87181.0,87168.0,0.01147209]
[1766765934464,0.01152,87185.0,87171.0,0.0114717]
[1766765934627,0.01152,87185.0,87171.0,1.24909]
[1766765935082,1.21442,87182.0,87171.0,0.010527]
[1766765936522,1.0245098,87182.0,87171.0,0.010527]
[1766765936925,0.01146999,87184.0,87167.0,0.01152]
[1766765936926,1.21442,87183.0,87167.0,0.01152]
[1766765937276,1.22589012,87183.0,87167.0,0.01152]
[1766765937477,1.21442,87183.0,87167.0,0.01152]
[1766765937678,0.11424524,87182.0,87167.0,0.01152]
[1766765937880,1.21442,87181.0,87167.0,0.01152]
[1766765938668,1.21442,87181.0,87165.0,0.01152]
[1766765941658,1.21442,87181.0,87164.0,0.01152]
[1766765942124,0.0803397,87185.0,87164.0,0.01152]
[1766765942125,0.01152,87185.0,87181.0,0.000549]
[1766765942455,0.01152,87185.0,87167.0,1.23757]
[1766765943486,1.21442,87184.0,87167.0,1.23757]
[1766765944758,1.21442,87184.0,87168.0,0.11424524]
[1766765944939,0.01152,87185.0,87169.0,0.01147196]
[1766765945174,1.21442,87205.0,87185.0,0.00055]
[1766765945365,0.01069778,87204.0,87191.0,0.01146907]
[1766765945571,0.01152,87208.0,87190.0,0.0114692]
[1766765945772,0.01069669,87207.0,87190.0,0.0114692]
[1766765945936,0.01069669,87206.0,87189.0,1.24903933]
[1766765946133,0.01152,87208.0,87193.0,1.23757]
[1766765946335,0.01015259,87207.0,87193.0,1.24903881]
[1766765946545,0.0116275,87208.0,87193.0,1.23757]
[1766765946746,0.04228293,87215.0,87208.0,0.0004425]
[1766765946951,1.21442,87218.0,87208.0,0.0004425]
[1766765947153,0.138986,87217.0,87208.0,0.0004425]
[1766765947351,0.138986,87217.0,87196.0,0.01146841]
[1766765947551,0.138986,87217.0,87197.0,0.01146828]
[1766765947753,1.21442,87218.0,87200.0,0.01146788]
[1766765947952,0.01152,87219.0,87203.0,1.23757]
[1766765948234,0.01152,87219.0,87203.0,1.24909]
[1766765948494,0.04228293,87219.0,87203.0,1.24909]
[1766765948643,0.01152,87219.0,87203.0,1.24909]
[1766765948987,0.04228293,87221.0,87204.0,0.11424524]
[1766765949306,0.01152,87221.0,87204.0,0.11424524]
[1766765949485,0.03076293,87220.0,87204.0,0.11424524]
[1766765950283,0.04228293,87221.0,87204.0,0.11424524]
[1766765950489,0.03076293,87218.0,87204.0,0.11424524]
[1766765951710,0.01152,87221.0,87218.0,0.000443]
[1766765951711,0.04228293,87221.0,87218.0,0.000443]
[1766765951914,0.04228293,87221.0,87209.0,0.0114667]
[1766765951915,0.03076293,87222.0,87214.0,0.01152]
[1766765952089,0.03076293,87226.0,87215.0,0.00059601]
[1766765952291,0.03076293,87227.0,87215.0,0.00059599]
[1766765952530,0.03076293,87227.0,87214.0,1.24909]
[1766765952773,0.03076293,87227.0,87218.0,0.01146552]
[1766765952978,0.03076293,87232.0,87225.0,0.06878697]
[1766765953274,1.77613876,87242.0,87227.0,0.06878575]
[1766765953275,0.5,87242.0,87227.0,0.06878575]
[1766765953427,0.5,87242.0,87228.0,0.07233223]
[1766765953628,0.01152,87246.0,87230.0,0.01146394]
[1766765953834,0.01152,87246.0,87229.0,1.23757]
[1766765954238,0.0118784,87246.0,87229.0,1.23757]
[1766765955898,0.000549,87229.0,87211.0,0.04592]
[1766765956100,1.18487,87240.0,87212.0,0.01152]
[1766765956101,0.01146289,87238.0,87212.0,0.01152]
[1766765956305,1.29911524,87237.0,87212.0,0.01152]
[1766765956536,1.29911524,87237.0,87210.0,1.19798657]
[1766765956741,0.01146289,87238.0,87210.0,1.19798657]
[1766765956742,1.19633315,87236.0,87210.0,1.18652]
[1766765956941,1.18487,87235.0,87210.0,1.19798657]
[1766765957143,1.18487,87235.0,87211.0,0.01152]
[1766765957354,1.18487,87235.0,87211.0,0.02298644]
[1766765957741,0.00025154,87226.0,87211.0,0.01152]
[1766765958135,0.00025154,87226.0,87211.0,0.02298644]
[1766765958542,0.00025154,87226.0,87212.0,0.01146631]
[1766765958877,0.00025154,87226.0,87213.0,0.01146618]
[1766765959133,0.00025154,87226.0,87217.0,0.01146565]
[1766765959410,1.54e-06,87226.0,87218.0,0.01152]
[1766765961778,0.000549,87218.0,87200.0,1.18652]
[1766765962205,0.000549,87218.0,87201.0,0.01152]
[1766765962403,1.18487,87224.0,87201.0,0.01152]
[1766765962916,1.19669291,87224.0,87201.0,0.01152]
[1766765963637,1.00644253,87224.0,87201.0,0.01152]
[1766765963995,0.9949778,87224.0,87201.0,0.01152]
[1766765964194,0.9949778,87224.0,87201.0,1.19804]
[1766765964433,0.9949778,87224.0,87202.0,0.12576524]
[1766765964671,0.9949778,87224.0,87202.0,0.19457042]
[1766765964882,0.9949778,87224.0,87205.0,0.01146723]
[1766765965016,0.9949778,87224.0,87203.0,1.18652]
[1766765965550,0.9949778,87224.0,87204.0,0.01152]
[1766765966098,1.10922304,87224.0,87204.0,0.01152]
[1766765966338,0.9949778,87224.0,87204.0,0.01152]
[1766765968540,1.54e-06,87226.0,87213.0,0.01146618]
[1766765968760,1.54e-06,87226.0,87218.0,1.18652]
[1766765969366,1.54e-06,87226.0,87219.0,1.24384695]
[1766765969563,0.01152,87239.0,87220.0,0.11424524]
[1766765969763,0.01152,87239.0,87221.0,0.01152]
[1766765970135,0.01152,87239.0,87221.0,1.19804]
[1766765971099,1.1963321,87244.0,87221.0,1.19804]
[1766765971302,1.18487,87240.0,87221.0,1.20950512]
[1766765971516,1.18487,87240.0,87223.0,0.01146486]
[1766765971802,1.18487,87240.0,87222.0,0.07233302]
[1766765972609,1.18487,87240.0,87222.0,0.06086803]
[1766765973885,1.18487,87240.0,87221.0,1.19804]
[1766765974952,1.18487,87240.0,87221.0,1.20950512]
[1766765975110,0.01071578,87239.0,87221.0,0.02298512]
[1766765975311,1.18487,87239.0,87221.0,0.02298512]
[1766765975807,1.18487,87239.0,87221.0,0.01152]
[1766765976221,1.19558979,87238.0,87221.0,0.01152]
[1766765976417,1.18487,87238.0,87222.0,0.00917801]
[1766765976645,1.18487,87238.0,87221.0,0.01152]
[1766765976866,1.18487,87238.0,87224.0,0.01146473]
[1766765977089,1.18487,87238.0,87221.0,0.01152]
[1766765977789,1.18487,87238.0,87225.0,0.0114646]
[1766765977966,1.18487,87238.0,87226.0,0.11424524]
[1766765978165,0.01072516,87237.0,87226.0,0.11424524]
[1766765978478,0.00025153,87234.0,87226.0,0.11424524]
[1766765978640,0.00025153,87234.0,87225.0,0.0114646]
[1766765978847,0.00025153,87234.0,87221.0,1.20950512]
[1766765979302,0.00025153,87234.0,87221.0,1.19804]
[1766765979887,0.00025153,87234.0,87221.0,1.20950512]
[1766765980326,0.00011743,87234.0,87221.0,1.19804]
[1766765980485,0.00011743,87234.0,87222.0,0.11424524]
[1766765982099,0.01074106,87233.0,87222.0,0.11424524]
[1766765982304,0.01074106,87233.0,87221.0,1.19804]
[1766765982305,0.000549,87222.0,87221.0,0.01152]
[1766765982906,0.00011743,87234.0,87221.0,0.01152]
[1766765983108,0.01074128,87233.0,87221.0,0.01152]
[1766765983288,0.01074128,87232.0,87221.0,0.01152]
[1766765983492,0.00011743,87234.0,87221.0,0.01152]
[1766765983692,0.01074289,87233.0,87221.0,0.01152]
[1766765983894,0.01074289,87232.0,87221.0,0.01152]
[1766765984124,0.01074289,87231.0,87221.0,0.01152]
[1766765984452,1.20553743,87234.0,87221.0,0.010971]
[1766765984453,1.17055,87233.0,87221.0,0.010971]
[1766765984694,0.01074403,87232.0,87221.0,0.010971]
[1766765984857,0.01074403,87231.0,87221.0,0.010971]
[1766765985002,1.17055,87231.0,87221.0,0.010971]
[1766765985197,0.01074497,87230.0,87221.0,0.010971]
[1766765985396,1.17055,87231.0,87221.0,0.010971]
[1766765985397,0.01074518,87229.0,87221.0,0.010971]
[1766765985602,1.17055,87231.0,87221.0,0.010971]
[1766765985850,0.01074518,87230.0,87221.0,0.010971]
[1766765986027,1.17055,87231.0,87221.0,0.010971]
[1766765986213,0.01074522,87230.0,87221.0,0.010971]
[1766765986416,1.17055,87231.0,87221.0,0.010971]
[1766765986641,1.18129528,87230.0,87221.0,0.010971]
[1766765986833,1.18129528,87229.0,87221.0,0.010971]
[1766765987034,1.17055,87229.0,87221.0,0.010971]
[1766765987235,1.17055,87229.0,87220.0,0.01152]
[1766765987461,1.187924,87229.0,87219.0,1e-08]
[1766765987664,0.00055,87220.0,87219.0,1e-08]
[1766765988062,1.17055,87227.0,87219.0,1e-08]
[1766765988270,0.01074593,87226.0,87219.0,1e-08]
[1766765988532,0.01152,87233.0,87219.0,1e-08]
[1766765988533,0.01152,87233.0,87226.0,0.000549]
[1766765988731,0.0107459,87232.0,87220.0,1.24059]
[1766765988935,0.0107459,87231.0,87220.0,0.99948704]
[1766765989198,0.01152,87233.0,87220.0,0.88469556]
[1766765989400,0.01074515,87232.0,87220.0,0.88469556]
[1766765989597,0.01152,87233.0,87220.0,1.24059]
[1766765990829,0.00055,87220.0,87218.0,0.01152]
[1766765991213,1.19353355,87233.0,87218.0,0.01152]
[1766765991613,1.18207,87233.0,87218.0,0.01152]
[1766765991842,1.18207,87233.0,87213.0,1.24094818]
[1766765992050,1.18207,87233.0,87216.0,0.01152]
[1766765992748,1.19353355,87233.0,87216.0,0.01152]
[1766765992956,0.01146381,87231.0,87216.0,0.01152]
[1766765993157,1.18201368,87232.0,87216.0,0.01152]
[1766765993750,0.00055,87216.0,87213.0,0.00035818]
[1766765993917,1.17055,87227.0,87215.0,0.01152]
[1766765994162,0.02719445,87226.0,87215.0,0.01152]
[1766765994364,0.01158085,87234.0,87215.0,0.01152]
[1766765994365,0.01152,87240.0,87228.0,1.24059]
[1766765994571,1.17095,87250.0,87231.0,0.01146381]
[1766765994572,0.01152,87247.0,87231.0,0.01146381]
[1766765994867,1.17095,87250.0,87238.0,0.01146289]
[1766765994868,0.0004,87250.0,87238.0,0.01146289]
[1766765995062,0.0004,87250.0,87239.0,1.25205276]
[1766765995292,0.01152,87254.0,87250.0,0.0004]
[1766765995474,0.01152,87254.0,87241.0,1.24059]
[1766765995864,0.01152,87254.0,87243.0,1.24059]
[1766765996480,0.01162743,87254.0,87243.0,1.24059]
[1766765996689,0.01162743,87254.0,87248.0,0.01146158]
[1766765996690,0.00010743,87254.0,87248.0,0.01146158]
[1766765996942,1.17055,87268.0,87248.0,0.01146158]
[1766765996943,0.01152,87265.0,87248.0,1.24059]
[1766765997144,0.01152,87265.0,87249.0,1.36629668]
[1766765997343,0.01152,87265.0,87249.0,1.35483524]
[1766765997544,0.01152,87265.0,87249.0,1.35467285]
[1766765997903,0.01152,87265.0,87249.0,1.24059]
[1766765999760,1.18207,87265.0,87242.0,0.01152]
[1766765999957,1.18207,87265.0,87242.0,1.25221743]
[1766766000817,1.17055,87261.0,87242.0,1.25221743]
[1766766001019,1.17055,87261.0,87242.0,1.24069743]
[1766766001227,0.01152,87265.0,87248.0,1.24059]
[1766766001422,1.17095,87270.0,87252.0,1.24059]
[1766766001423,0.01152,87268.0,87252.0,1.24059]
[1766766001621,0.01072463,87267.0,87252.0,1.24059]
[1766766001821,0.01152,87268.0,87252.0,1.24059]
[1766766001822,0.01072463,87266.0,87252.0,1.24059]
[1766766002040,0.01072463,87265.0,87251.0,1.24059]
[1766766002240,0.00055,87252.0,87250.0,0.01152]
[1766766002472,1.17055,87266.0,87250.0,0.01152]
[1766766002649,0.01072276,87265.0,87248.0,0.01152]
[1766766002849,1.17055,87263.0,87246.0,0.01152]
[1766766003195,1.17055,87261.0,87246.0,0.01152]
[1766766005433,1.17055,87267.0,87246.0,1.25211]
[1766766005550,1.20431659,87266.0,87246.0,1.25211]
[1766766005750,1.17055,87264.0,87246.0,0.01152]
[1766766006758,1.17055,87262.0,87246.0,0.01152]
[1766766006960,1.17055,87262.0,87245.0,0.01152]
[1766766007199,1.17055,87259.0,87245.0,0.01152]
[1766766007396,1.18201013,87259.0,87245.0,0.01152]
[1766766007573,0.00025134,87261.0,87245.0,1.25211]
[1766766007774,0.00025134,87261.0,87259.0,0.000549]
[1766766007983,0.00025134,87261.0,87254.0,0.01146079]
[1766766008187,0.00025134,87261.0,87256.0,0.01146052]
[1766766008388,0.00025134,87261.0,87254.0,0.02298079]
[1766766008591,0.00025134,87261.0,87254.0,0.01152]
[1766766008592,3.4e-07,87261.0,87254.0,0.01152]
[1766766010337,3.4e-07,87261.0,87252.0,0.01152]
[1766766012789,0.00055,87252.0,87250.0,0.01152]
[1766766013217,1.17055034,87261.0,87250.0,0.01152]
[1766766015031,1.17055034,87261.0,87249.0,0.01152]
[1766766015210,1.17055034,87261.0,87248.0,0.01152]
[1766766015827,1.28479558,87261.0,87248.0,0.01152]
[1766766017779,1.17055034,87261.0,87248.0,0.01152]
[1766766017990,1.17055034,87261.0,87247.0,0.01152]
[1766766019311,3.4e-07,87261.0,87247.0,1.29644]
[1766766021571,3.4e-07,87261.0,87248.0,0.01152]
[1766766023384,3.4e-07,87261.0,87248.0,0.02298158]
[1766766023625,3.4e-07,87261.0,87248.0,0.01146158]
[1766766023804,3.4e-07,87261.0,87248.0,0.02298158]
[1766766024235,0.0107456,87260.0,87248.0,0.01152]
[1766766024461,3.4e-07,87261.0,87248.0,0.01152]
[1766766024602,0.01074576,87260.0,87248.0,0.01152]
[1766766024953,3.4e-07,87261.0,87248.0,0.02298158]
[1766766025101,0.01074576,87260.0,87248.0,0.02298158]
[1766766025307,0.01074576,87259.0,87248.0,0.02298158]
[1766766025518,3.4e-07,87261.0,87249.0,0.01146144]
[1766766025735,0.01075048,87260.0,87248.0,0.02298158]
[1766766025896,0.01075048,87259.0,87248.0,0.01152]
[1766766026097,3.4e-07,87261.0,87248.0,0.01152]
[1766766026340,0.01075115,87260.0,87248.0,0.01152]
[1766766026540,0.01075115,87259.0,87248.0,0.01152]
[1766766026716,3.4e-07,87261.0,87248.0,0.01152]
[1766766026986,0.01075124,87260.0,87247.0,1.28492]
[1766766027166,3.4e-07,87261.0,87247.0,1.28492]
[1766766027167,0.01075124,87259.0,87248.0,0.01152]
[1766766027437,3.4e-07,87261.0,87259.0,0.000549]
[1766766028064,3.4e-07,87261.0,87254.0,1.17017385]
[1766766028237,3.4e-07,87261.0,87254.0,1.18163464]
[1766766028438,3.4e-07,87261.0,87256.0,1.28492]
[1766766031126,3.4e-07,87261.0,87257.0,1.29697585]
[1766766031333,3.4e-07,87261.0,87259.0,1.28492]
[1766766031543,0.00800725,87268.0,87259.0,1.28492]
[1766766031751,0.00800725,87268.0,87258.0,0.06876127]
[1766766031752,0.0004,87270.0,87268.0,0.000549]
[1766766032145,0.0004,87270.0,87260.0,1.28492]
[1766766032574,0.0002,87283.0,87266.0,1.28492]
[1766766032902,0.0002,87283.0,87270.0,1.29677869]
[1766766033111,0.0002,87283.0,87271.0,1.29644]
[1766766034102,0.00030737,87283.0,87271.0,0.01152]
[1766766034302,1.20816,87282.0,87271.0,0.01152]
[1766766034501,1.20816,87282.0,87264.0,0.01152]
[1766766034708,1.21961711,87282.0,87263.0,0.01152]
[1766766034907,1.20816,87282.0,87259.0,1.28492]
[1766766035093,0.01176435,87283.0,87260.0,0.01152]
[1766766035094,1.20816,87280.0,87260.0,0.01152]